bitfinex/quotes_ETHUSD_20220202
["timestamp","ask_amount","ask_price","bid_price","bid_amount"]
[1643813458326,0.1852,2698.2,2697.4,0.3]
[1643813458525,0.1852,2698.2,2697.0,0.434]
[1643813458725,0.1852,2698.2,2697.0,0.734]
[1643813458926,0.0129985,2698.3,2697.0,0.734]
[1643813459232,0.1852,2698.5,2697.0,0.734]
[1643813459233,0.1852,2698.5,2698.0,1.20615929]
[1643813459427,0.01274636,2699.1,2698.0,1.20615929]
[1643813459428,0.1852,2698.6,2698.1,0.24376364]
[1643813459627,0.1852,2699.0,2698.1,0.24376364]
[1643813459826,1.07427,2699.0,2698.2,0.734]
[1643813460427,1.07427,2699.0,2698.6,0.21797085]
[1643813460627,1.07427,2699.0,2698.2,0.734]
[1643813460828,4.45649544,2699.0,2698.2,0.434]
[1643813461032,4.45649544,2699.0,2697.6,0.1852]
[1643813461033,4.45649544,2698.3,2697.6,0.1852]
[1643813461230,2.60047892,2698.2,2697.5,0.92761291]
[1643813461438,0.01270034,2698.4,2697.5,0.92761291]
[1643813461439,4.45649544,2697.9,2697.5,0.92761291]
[1643813461628,0.1852,2698.3,2697.5,0.92761291]
[1643813462077,0.1852,2698.6,2697.5,0.92761291]
[1643813462677,0.1852,2698.6,2698.2,0.22294656]
[1643813462879,0.1852,2698.6,2697.4,2.60889867]
[1643813463078,0.1852,2698.6,2697.5,0.434]
[1643813463378,0.1852,2698.6,2697.5,0.65262724]
[1643813463379,1.07427,2698.6,2697.5,0.65262724]
[1643813463579,1.07427,2698.6,2698.0,1.5]
[1643813463776,1.07427,2698.6,2698.0,1.934]
[1643813463977,0.01240516,2699.0,2698.1,0.92647019]
[1643813464177,0.03321554,2700.1,2698.2,0.434]
[1643813464178,2.78567892,2699.4,2698.2,0.434]
[1643813464581,2.78567892,2699.4,2698.2,0.734]
[1643813464776,2.78567892,2699.4,2698.2,1.734]
[1643813464777,0.08819997,2699.3,2698.2,1.734]
[1643813465180,0.08819997,2699.3,2698.9,0.18169993]
[1643813466245,0.1852,2699.6,2698.9,0.18169993]
[1643813466449,0.1852,2699.6,2699.5,1.14785359]
[1643813466647,4.45649544,2699.9,2699.5,1.14785359]
[1643813466846,0.1852,2700.3,2699.5,1.44785359]
[1643813467254,0.185,2700.9,2699.5,1.44785359]
[1643813467448,7.24197436,2700.9,2699.6,0.434]
[1643813467647,1.07427,2700.8,2700.1,0.92808066]
[1643813467847,2.78547892,2700.7,2700.2,0.24015088]
[1643813468049,0.185,2700.7,2700.2,0.24015088]
[1643813468246,0.185,2700.7,2699.8,0.434]
[1643813468448,1.07427,2700.6,2699.8,0.434]
[1643813468651,0.85391,2700.5,2699.8,0.434]
[1643813468849,1.03891,2700.5,2700.0,0.83587821]
[1643813469266,1.03891,2700.5,2700.0,1.05019142]
[1643813469470,1.03891,2700.5,2700.0,1.35019142]
[1643813469668,0.85391,2700.5,2700.1,0.434]
[1643813470469,1.07427,2700.6,2700.1,0.434]
[1643813470874,0.185,2701.1,2700.1,1.43399999]
[1643813471076,0.18516,2701.4,2700.4,0.99999999]
[1643813471273,0.18516,2701.4,2700.2,0.3274]
[1643813471274,0.18516,2701.4,2700.5,0.185]
[1643813471476,0.18516,2701.4,2701.3,5.43601581]
[1643813471675,0.18516,2701.4,2701.3,6.17001581]
[1643813471875,0.18516,2701.4,2701.3,6.384]
[1643813471876,6e-05,2701.4,2701.3,6.384]
[1643813472080,0.20948,2702.0,2701.3,6.384]
[1643813472274,2.98159254,2702.4,2701.4,1.0]
[1643813472478,0.39448,2702.4,2701.5,0.434]
[1643813472677,0.185,2702.6,2701.5,0.734]
[1643813472877,4.45649544,2702.0,2701.5,0.734]
[1643813473137,0.185,2702.6,2700.8,0.164]
[1643813473138,0.01235901,2701.8,2700.8,1.0]
[1643813473336,0.01235901,2701.8,2700.8,0.46418248]
[1643813473541,0.01235901,2701.8,2700.8,0.434]
[1643813473837,0.185,2702.9,2700.8,0.434]
[1643813473838,4.45649544,2702.4,2701.2,0.89264601]
[1643813474039,0.185,2702.3,2701.8,0.92453522]
[1643813474235,0.185,2702.3,2701.1,0.24381845]
[1643813474236,0.185,2702.3,2701.2,0.434]
[1643813474840,4.45649544,2701.3,2700.7,0.185]
[1643813475043,4.45649544,2700.8,2700.7,0.185]
[1643813475336,4.45649544,2701.0,2700.9,0.8592925]
[1643813475534,0.01220763,2701.1,2700.3,0.04999999]
[1643813475736,0.185,2701.4,2700.7,0.20429657]
[1643813476136,0.185,2701.4,2700.3,0.04999999]
[1643813476340,4.43649544,2701.1,2700.3,0.04999999]
[1643813476536,4.43649544,2701.1,2700.7,0.84464777]
[1643813476774,0.185,2701.4,2700.7,0.84464777]
[1643813477173,0.185,2701.4,2701.1,0.18035473]
[1643813477381,0.185,2702.1,2700.7,0.84464777]
[1643813477587,0.185,2702.1,2700.8,0.434]
[1643813477588,4.43649544,2702.0,2700.8,0.434]
[1643813477777,0.01267381,2702.4,2700.9,0.99999999]
[1643813477778,0.185,2702.3,2700.9,0.99999999]
[1643813477984,0.185,2702.7,2701.2,0.99999999]
[1643813478177,0.185,2703.0,2701.2,4.22681701]
[1643813478377,4.43649544,2702.4,2702.1,0.22638231]
[1643813478579,0.01257727,2703.2,2702.2,0.434]
[1643813478779,0.65615525,2704.0,2702.4,0.5]
[1643813478780,4.43649544,2704.0,2702.4,0.5]
[1643813478979,0.05057,2703.9,2703.3,0.89439633]
[1643813479179,0.05057,2703.9,2703.3,1.19439633]
[1643813479378,4.43649544,2704.3,2703.3,1.19439633]
[1643813479379,0.05056,2704.2,2703.3,1.19439633]
[1643813479577,0.05056,2704.2,2703.6,0.1939406]
[1643813479777,1.14231047,2704.7,2703.6,0.6279406]
[1643813479778,0.05056,2704.6,2703.6,0.6279406]
[1643813479979,0.05056,2704.6,2704.5,0.72067393]
[1643813480201,1.1295037,2704.7,2704.2,0.434]
[1643813480628,1.0295037,2704.7,2704.3,0.22434915]
[1643813480827,0.05056,2705.5,2704.5,3.1]
[1643813481033,4.48705544,2705.6,2704.9,0.78565255]
[1643813481232,4.43649544,2705.3,2705.0,0.434]
[1643813481441,0.05056,2705.6,2705.0,0.434]
[1643813481629,0.1847,2705.8,2705.0,0.434]
[1643813482032,0.1847,2705.8,2705.0,0.46631879]
[1643813482233,2.77126,2707.1,2705.5,1.05148352]
[1643813482234,0.01218644,2706.5,2705.5,1.05148352]
[1643813482433,0.01218644,2706.5,2705.6,0.434]
[1643813482434,0.86609644,2706.5,2705.6,0.434]
[1643813482632,0.86609644,2706.5,2704.9,0.3]
[1643813482633,4.43649544,2705.7,2705.2,0.1845]
[1643813482838,0.01205145,2705.8,2704.7,1.2342629]
[1643813482839,4.43649544,2705.3,2704.7,0.23449999]
[1643813483032,4.43649544,2705.3,2704.7,0.04999999]
[1643813483232,0.01205145,2705.8,2704.7,0.04999999]
[1643813483233,4.43649544,2705.2,2704.7,0.04999999]
[1643813483433,4.18599929,2705.4,2704.7,0.04999999]
[1643813483632,0.01205145,2705.8,2705.2,0.9466366]
[1643813483835,0.80391,2706.5,2705.2,0.98381667]
[1643813484034,4.18599929,2705.5,2705.0,0.434]
[1643813484275,0.01260178,2706.2,2705.0,0.734]
[1643813484476,0.85391,2706.3,2705.1,0.2201229]
[1643813484674,0.85391,2706.3,2705.1,1.2938829]
[1643813484876,6.11417929,2706.3,2705.2,0.5876]
[1643813485080,0.85391,2706.2,2705.7,0.7031932]
[1643813485377,1.92818,2706.2,2705.7,1.04077437]
[1643813485575,4.18599929,2706.0,2705.8,0.434]
[1643813485775,4.18599929,2706.0,2705.2,0.19331295]
[1643813485973,4.18599929,2705.7,2705.2,0.19331295]
[1643813486174,0.01214264,2706.0,2705.2,0.2233689]
[1643813486374,5.03990929,2706.1,2705.3,0.434]
[1643813486575,0.85391,2706.1,2705.4,0.92920673]
[1643813486777,0.85391,2706.1,2705.4,1.22920673]
[1643813486977,4.18599929,2705.7,2705.4,1.22920673]
[1643813487276,0.85391,2706.1,2705.4,1.22920673]
[1643813487476,0.85391,2706.1,2705.5,0.22280081]
[1643813487675,0.85391,2706.1,2705.5,0.65680081]
[1643813487882,5.03990929,2706.1,2705.5,0.65680081]
[1643813488131,4.18599929,2705.8,2705.5,0.434]
[1643813488326,4.18599929,2705.8,2705.0,0.1847]
[1643813488327,0.01210057,2705.6,2705.0,0.1847]
[1643813488525,4.19857093,2705.1,2705.0,0.1847]
[1643813489124,4.18599929,2705.1,2705.0,0.1847]
[1643813489326,6.78599929,2705.1,2705.0,0.1847]
[1643813489525,4.18599929,2705.1,2704.0,0.04999999]
[1643813489724,0.01298694,2704.8,2704.0,0.04999999]
[1643813490126,4.18599929,2704.9,2704.0,0.04999999]
[1643813490529,4.18599929,2704.9,2704.3,0.93368578]
[1643813491127,0.1968804,2705.3,2704.1,0.18640333]
[1643813491536,4.18599929,2705.1,2704.1,0.18640333]
[1643813491771,4.18599929,2705.1,2704.0,0.04999999]
[1643813492172,4.13599929,2705.1,2704.4,0.87705871]
[1643813492373,4.13599929,2705.1,2704.0,2.51937652]
[1643813492575,0.1847,2705.2,2704.0,2.51937652]
[1643813492773,4.13599929,2704.5,2704.2,0.1803238]
[1643813493078,4.13599929,2705.0,2703.4,3.22378672]
[1643813493273,4.13599929,2705.0,2703.4,3.65488287]
[1643813493473,4.13599929,2705.0,2703.4,3.69402187]
[1643813493674,0.1847,2705.2,2703.5,0.1424]
[1643813493675,0.01273761,2704.7,2703.5,0.1424]
[1643813493874,4.13599929,2704.4,2703.6,0.1848]
[1643813494074,4.13599929,2704.4,2703.6,2.65562973]
[1643813494273,4.13599929,2704.4,2704.0,0.91001292]
[1643813494476,0.01273761,2704.7,2703.6,2.47082973]
[1643813494675,4.13599929,2704.4,2703.6,2.47082973]
[1643813494874,4.13599929,2704.0,2702.9,0.1849]
[1643813495075,4.13599929,2704.0,2703.9,0.24466313]
[1643813495273,4.13599929,2704.3,2703.9,0.24466313]
[1643813495527,0.1849,2704.6,2703.9,0.24466313]
[1643813495528,4.32089929,2704.6,2704.1,0.90716616]
[1643813495726,4.13599929,2704.6,2704.1,0.90716616]
[1643813496120,0.1847,2705.4,2704.1,0.90716616]
[1643813496121,4.13599929,2705.1,2704.1,0.90716616]
[1643813496321,0.1847,2705.0,2704.1,1.20716616]
[1643813496523,4.13599929,2704.8,2704.4,0.20970123]
[1643813496723,0.62499327,2704.3,2704.1,1.20716616]
[1643813496925,0.1847,2705.3,2704.2,0.03741223]
[1643813497122,0.76329252,2705.5,2704.3,0.6187]
[1643813497322,0.13819996,2705.5,2704.3,0.734]
[1643813497522,0.62509256,2705.3,2704.3,0.734]
[1643813497927,0.15082898,2705.5,2704.4,0.18469]
[1643813498122,0.15082898,2705.5,2704.3,0.3]
[1643813498123,0.62509256,2704.8,2704.3,0.3]
[1643813498327,0.62509256,2705.1,2704.2,1.4847]
[1643813498522,0.62509256,2705.1,2704.2,0.4847]
[1643813498722,0.62509256,2705.1,2704.2,0.1847]
[1643813498926,0.62509256,2705.1,2704.9,1.17212345]
[1643813499124,0.62509256,2705.1,2704.9,0.93367776]
[1643813499377,0.62509256,2705.1,2704.9,1.23367776]
[1643813499579,0.62509256,2705.1,2704.9,0.3]
[1643813499771,0.62509256,2705.1,2704.3,0.18469]
[1643813499973,0.62509256,2705.1,2704.4,1.67595]
[1643813500273,0.62509256,2705.1,2704.8,0.2330875]
[1643813500675,0.62509256,2705.1,2704.9,0.88983007]
[1643813501076,0.62509256,2705.1,2704.9,1.18983007]
[1643813501279,0.62509256,2705.1,2704.9,2.18983007]
[1643813501475,0.62509256,2705.1,2704.8,1.21662745]
[1643813501777,0.62509256,2705.1,2704.4,1.67595]
[1643813501975,0.01272515,2705.3,2704.4,1.67595]
[1643813501976,0.62509256,2704.8,2704.4,1.67595]
[1643813502175,0.62509256,2704.8,2704.4,2.89305394]
[1643813502375,0.1847,2705.4,2704.4,2.89305394]
[1643813502576,0.62509256,2705.0,2704.4,2.89305394]
[1643813502779,0.62509256,2704.5,2704.4,1.67595]
[1643813503031,0.63723217,2704.5,2704.4,1.67595]
[1643813503227,0.63723217,2704.5,2703.9,0.1847]
[1643813503228,5.52193217,2704.5,2703.9,0.1847]
[1643813503440,0.62509256,2704.0,2703.9,0.1847]
[1643813503630,0.80999256,2704.0,2703.5,0.94167251]
[1643813503826,0.62509256,2703.6,2702.7,0.18469]
[1643813504027,0.62509256,2703.6,2702.8,1.67694]
[1643813504234,0.62509256,2703.6,2702.8,2.8951073]
[1643813504828,0.62509256,2703.6,2703.3,0.20707907]
[1643813505229,0.62509256,2703.6,2703.3,1.67663]
[1643813506232,3.65,2703.3,2702.0,0.1849]
[1643813506433,0.62509256,2702.1,2701.5,0.185]
[1643813506634,0.18475,2702.7,2701.3,0.185]
[1643813506875,0.18475,2702.7,2701.2,0.185]
[1643813506876,0.62509256,2701.5,2701.2,0.185]
[1643813507077,0.62509256,2701.5,2700.6,0.36969]
[1643813507275,0.62509256,2701.5,2700.7,0.82718593]
[1643813507477,3.71783826,2702.4,2701.4,0.86123813]
[1643813507676,0.62509256,2701.5,2701.4,1.03519671]
[1643813507874,0.62509256,2701.5,2701.4,0.86123813]
[1643813509077,0.62509256,2701.5,2701.4,4.11123813]
[1643813509378,0.62509256,2701.5,2701.4,0.86123813]
[1643813509578,0.62509256,2701.5,2700.7,0.185]
[1643813509777,1.06341996,2702.4,2700.6,1.2188733]
[1643813509778,0.62509256,2700.8,2700.6,1.2188733]
[1643813509976,0.62509256,2700.8,2700.0,0.185]
[1643813510177,0.13819996,2701.8,2700.0,0.185]
[1643813510178,0.185,2701.7,2700.2,0.18469]
[1643813510376,0.13819996,2701.8,2700.3,0.185]
[1643813510624,0.185,2702.1,2700.4,3.04835063]
[1643813510823,0.01254622,2702.5,2700.4,3.04835063]
[1643813510824,0.185,2702.3,2700.5,1.55670949]
[1643813511025,1.1726,2702.8,2700.5,1.14501159]
[1643813511234,0.01260541,2702.2,2700.6,0.96849]
[1643813511430,0.01260541,2702.2,2700.6,0.98233217]
[1643813511622,0.01260541,2702.2,2702.1,0.84950342]
[1643813512225,0.46139992,2702.7,2702.1,0.84950342]
[1643813512226,0.185,2702.7,2702.1,0.84950342]
[1643813512430,0.01260091,2703.4,2702.1,5.04153984]
[1643813512626,0.0129353,2702.7,2702.4,0.24281682]
[1643813513025,0.0129353,2702.7,2701.5,0.18469]
[1643813513026,0.63884418,2701.6,2701.5,0.18469]
[1643813513224,0.0129353,2702.7,2701.5,0.18469]
[1643813513425,0.0129353,2702.7,2701.7,1.84927]
[1643813513830,0.0129353,2702.7,2702.6,0.8464954]
[1643813514024,0.0129353,2702.7,2702.6,1.0876629]
[1643813514668,0.0129353,2702.7,2702.6,0.8464954]
[1643813514870,0.185,2703.2,2702.6,0.8464954]
[1643813515069,0.13819996,2703.4,2702.0,0.1849]
[1643813515070,0.1849,2703.3,2702.0,0.1849]
[1643813515271,0.1849,2703.3,2701.9,0.485]
[1643813515272,0.01270077,2703.1,2701.9,0.485]
[1643813515469,0.01270077,2703.1,2701.9,0.3]
[1643813515869,0.01270077,2703.1,2701.8,1.185]
[1643813516071,0.185,2703.0,2701.7,0.185]
[1643813516272,0.01270315,2702.4,2701.3,1.28593]
[1643813516476,2.50491415,2702.4,2701.3,1.10093]
[1643813516672,0.185,2702.3,2701.3,1.10093]
[1643813517171,0.185,2702.3,2700.8,0.185]
[1643813517172,0.185,2702.3,2701.6,0.756063]
[1643813518059,0.185,2702.3,2700.8,0.185]
[1643813518060,1.01284974,2701.8,2700.8,0.185]
[1643813518254,0.0117295,2701.7,2700.8,0.185]
[1643813518455,0.6307295,2701.7,2700.8,0.185]
[1643813518655,2.76827465,2701.6,2700.8,0.185]
[1643813518853,2.79590455,2701.6,2701.3,0.73420926]
[1643813519059,0.185,2701.8,2701.3,0.73420926]
[1643813519258,0.185,2701.9,2701.3,0.73420926]
[1643813519454,0.185,2702.2,2701.3,0.73420926]
[1643813519656,0.185,2702.2,2701.7,0.1821986]
[1643813520057,0.185,2702.2,2701.3,0.73420926]
[1643813520255,2.7448875,2702.2,2701.3,0.73420926]
[1643813520468,2.7448875,2702.2,2700.8,0.185]
[1643813520469,1.0,2701.4,2700.8,0.185]
[1643813520655,0.0221434,2701.4,2700.8,0.185]
[1643813520856,0.2071434,2701.4,2700.8,0.185]
[1643813521056,0.2071434,2701.4,2700.6,0.84339356]
[1643813521257,1.0,2701.1,2699.8,0.185]
[1643813521462,1.02141689,2700.7,2699.7,0.185]
[1643813521792,0.01296375,2700.0,2699.8,0.87515]
[1643813522177,0.37846294,2700.6,2699.8,0.87515]
[1643813522376,0.36975,2700.6,2699.8,0.87515]
[1643813522579,1.36975,2700.6,2699.1,0.185]
[1643813522779,1.36975,2700.6,2699.1,0.135]
[1643813522976,0.36975,2700.6,2700.0,0.84427144]
[1643813523376,0.36975,2700.6,2699.1,0.135]
[1643813523580,0.01243753,2700.4,2699.1,0.135]
[1643813523779,0.36995,2700.3,2699.1,0.135]
[1643813523979,0.19763753,2700.4,2699.1,0.135]
[1643813524177,0.01243753,2700.4,2698.8,0.1852]
[1643813524578,0.01243753,2700.4,2699.8,0.6747336]
[1643813524778,0.01243753,2700.4,2699.9,0.18509473]
[1643813524988,0.185,2700.7,2699.9,0.18509473]
[1643813524989,0.185,2700.7,2699.9,4.37758845]
[1643813525182,0.185,2701.3,2700.0,0.36969]
[1643813525382,2.4984991,2701.6,2700.0,1.36969]
[1643813525650,0.18475,2701.5,2700.9,0.92116488]
[1643813526049,0.19773302,2701.6,2701.0,0.18788225]
[1643813526250,0.185,2701.6,2701.0,0.18788225]
[1643813526851,0.185,2701.6,2700.9,1.22116488]
[1643813527156,0.18475,2701.5,2700.4,0.185]
[1643813527350,0.18475,2701.5,2699.9,2.85048]
[1643813527351,0.01231072,2701.2,2700.1,0.185]
[1643813527951,0.01231072,2701.2,2699.9,2.15048]
[1643813527952,0.01231072,2701.2,2701.0,0.23426296]
[1643813528249,3.00584375,2701.6,2700.3,0.3]
[1643813528250,2.80854953,2701.6,2700.3,0.3]
[1643813528451,2.82131482,2701.6,2700.0,1.185]
[1643813528650,0.01214345,2701.0,2700.0,0.185]
[1643813528851,0.01214345,2701.0,2700.1,0.73261311]
[1643813529051,0.185,2700.9,2700.2,0.24382852]
[1643813529273,2.67076608,2701.2,2700.2,0.24382852]
[1643813529473,0.185,2701.3,2700.2,0.24382852]
[1643813530074,0.23246873,2701.1,2700.2,0.24382852]
[1643813530274,0.185,2701.3,2700.2,0.24382852]
[1643813530773,0.185,2701.3,2699.8,0.185]
[1643813530978,0.185,2701.3,2699.5,0.185]
[1643813530979,1.0,2700.9,2699.5,0.185]
[1643813531174,1.0,2700.9,2699.0,0.92566]
[1643813531175,0.1994647,2700.8,2699.1,0.185]
[1643813531373,0.1994647,2700.8,2699.3,1.85087]
[1643813531580,2.48576608,2701.3,2699.4,0.185]
[1643813531581,0.19726085,2701.2,2699.4,0.185]
[1643813531775,0.19726085,2701.2,2699.5,0.22244866]
[1643813531974,0.19726085,2701.2,2700.3,0.74674684]
[1643813532179,0.19726085,2701.2,2699.6,0.185]
[1643813532774,0.19726085,2701.2,2699.4,0.185]
[1643813532775,1.0,2700.6,2699.4,0.185]
[1643813533026,2.48576608,2700.5,2699.4,0.185]
[1643813533229,0.19633199,2700.4,2700.0,0.94938018]
[1643813533423,0.19633199,2700.4,2699.4,0.185]
[1643813533825,0.01253712,2700.6,2699.4,4.37644039]
[1643813534026,0.185,2701.1,2699.9,6.0]
[1643813534225,2.48962112,2701.3,2699.9,6.0]
[1643813534423,2.67462112,2701.3,2700.8,0.80814102]
[1643813534624,0.00385504,2701.3,2700.0,1.0]
[1643813534828,0.00385504,2701.3,2699.9,6.3]
[1643813534829,0.01266187,2700.9,2699.9,0.3]
[1643813535025,0.01266187,2700.9,2699.7,1.3]
[1643813535229,0.185,2701.6,2699.8,0.5764]
[1643813535432,0.27639992,2701.7,2699.9,0.1131944]
[1643813535730,0.27639992,2701.7,2700.1,0.00378017]
[1643813535928,0.19770417,2701.3,2700.2,0.434]
[1643813536127,0.20978994,2701.3,2700.2,2.18429]
[1643813536325,0.20978994,2701.3,2700.3,0.185]
[1643813536524,0.20978994,2701.3,2700.2,0.485]
[1643813536778,0.20978994,2701.3,2700.2,4.37588147]
[1643813536779,0.01208577,2701.3,2700.2,4.37588147]
[1643813536979,0.01208577,2701.3,2700.4,0.92521]
[1643813537179,0.01208577,2701.3,2700.3,1.0]
[1643813537582,0.01208577,2701.3,2700.3,1.3]
[1643813537779,0.01208577,2701.3,2700.2,0.185]
[1643813537780,0.19711577,2701.3,2700.2,0.185]
[1643813537980,0.19711577,2701.3,2700.6,0.91396164]
[1643813538180,0.19711577,2701.3,2699.7,0.185]
[1643813538181,0.185,2701.2,2699.7,0.185]
[1643813538981,0.185,2701.2,2699.7,0.36999]
[1643813539181,0.185,2701.2,2699.9,1.85055]
[1643813539382,0.38705596,2701.3,2700.5,7.5]
[1643813539583,0.20205596,2701.3,2700.5,7.5]
[1643813539886,0.01208577,2701.3,2700.5,7.5]
[1643813540084,0.19708577,2701.3,2700.9,0.87254619]
[1643813540289,0.185,2701.3,2700.9,0.87254619]
[1643813541334,0.185,2701.3,2700.1,1.0]
[1643813541533,0.185,2701.3,2700.0,1.11033]
[1643813541534,0.19091372,2701.3,2700.0,1.11033]
[1643813541736,0.19091372,2701.3,2700.0,0.185]
[1643813541737,0.37594372,2701.3,2700.0,0.185]
[1643813542136,0.37594372,2701.3,2699.5,0.92551]
[1643813542137,1.92559,2701.0,2699.7,0.20419008]
[1643813542335,0.37003,2700.9,2700.3,0.92504438]
[1643813542734,0.185,2700.9,2700.3,0.84274438]
[1643813542937,0.185,2701.2,2700.3,0.84274438]
[1643813543138,0.941,2701.4,2700.4,0.18499]
[1643813543338,0.941,2701.4,2700.6,1.85002]
[1643813543536,0.941,2701.4,2701.3,0.6686097]
[1643813544137,2.86918,2701.4,2701.3,0.6686097]
[1643813544400,0.185,2702.1,2701.4,4.65]
[1643813544596,17.3915,2703.1,2701.4,4.65]
[1643813544597,0.185,2702.4,2701.4,4.65922278]
[1643813544799,0.185,2702.4,2701.5,1.0]
[1643813544995,0.185,2702.9,2702.3,0.91528283]
[1643813545598,0.39744729,2703.1,2702.3,0.91528283]
[1643813547297,2.76113252,2703.0,2702.3,0.91528283]
[1643813547498,0.185,2702.9,2702.3,0.91528283]
[1643813547897,0.185,2703.0,2702.3,0.91528283]
[1643813548143,9.22435482,2704.2,2702.3,0.91528283]
[1643813548144,2.6419234,2703.8,2702.4,0.185]
[1643813548349,0.19708689,2703.6,2702.4,0.185]
[1643813548544,0.01298503,2703.0,2702.4,0.185]
[1643813548744,0.01298503,2703.0,2701.6,2.28345]
[1643813548745,0.19022955,2702.9,2701.7,0.1849]
[1643813548944,0.18503,2702.8,2701.7,0.1849]
[1643813549143,0.01298503,2703.0,2701.7,0.1849]
[1643813549343,0.01298503,2703.0,2701.9,0.92472]
[1643813549550,0.185,2703.3,2702.1,1.84911]
[1643813549746,0.185,2703.7,2702.2,0.36999]
[1643813550143,0.185,2703.7,2702.2,1.36999]
[1643813550345,0.21899503,2703.6,2702.7,0.21630016]
[1643813550743,0.21899503,2703.6,2703.3,0.7242678]
[1643813550945,0.185,2703.7,2703.3,0.7242678]
[1643813551144,0.00257095,2703.9,2703.3,0.7242678]
[1643813551342,2.4569234,2703.9,2702.9,0.92438]
[1643813551546,0.1849,2704.0,2702.9,0.3]
[1643813551786,0.00257095,2704.2,2702.7,1.1849]
[1643813551787,2.45949435,2704.2,2703.4,1.5]
[1643813551984,1.56826825,2704.1,2703.4,1.5]
[1643813552284,2.4569234,2704.2,2703.4,1.5]
[1643813552486,0.01534968,2704.3,2704.0,0.84671954]
[1643813552686,0.00257095,2704.3,2704.0,0.84671954]
[1643813552890,0.00257095,2704.3,2704.0,1.14671954]
[1643813553086,1.57050135,2704.8,2704.0,1.14671954]
[1643813553285,0.00257095,2704.8,2704.1,0.22036984]
[1643813553485,0.00257095,2704.8,2704.7,0.74356845]
[1643813553686,0.00257095,2705.1,2704.7,0.74356845]
[1643813553886,0.00257095,2705.1,2704.8,0.92374]
[1643813554088,0.00257095,2705.1,2704.8,5.54753535]
[1643813554385,0.00257095,2705.6,2704.9,1.53072033]
[1643813554584,0.00257095,2705.6,2705.0,0.1848]
[1643813554788,0.01287604,2706.2,2705.2,0.19933151]
[1643813554789,1.56729168,2706.1,2705.2,0.19933151]
[1643813554985,0.85391,2706.0,2705.2,0.19933151]
[1643813555290,1.70782,2706.0,2705.2,0.19933151]
[1643813555740,1.70782,2706.0,2705.7,0.83621688]
[1643813556041,1.70782,2706.0,2705.1,1.84705]
[1643813556242,0.00257095,2705.9,2705.1,2.14705]
[1643813556441,0.00257095,2705.9,2704.8,1.1847]
[1643813556639,0.1847,2705.8,2704.7,2.77059]
[1643813556841,0.20263565,2705.7,2705.1,0.82696678]
[1643813557042,0.38766565,2705.7,2704.3,0.1847]
[1643813557243,1.94038558,2705.6,2704.2,1.84773]
[1643813557441,0.85391,2705.4,2704.2,1.84773]
[1643813557941,0.2457071,2705.2,2704.6,0.87857453]
[1643813558146,0.00257095,2705.3,2704.5,0.92386]
[1643813558341,0.01258285,2704.9,2704.3,0.1847]
[1643813558742,0.19728285,2704.9,2704.3,0.1847]
[1643813558940,0.85391,2704.7,2704.3,0.1847]
[1643813559141,0.85391,2704.7,2704.4,0.70176796]
[1643813559142,0.78001,2704.7,2704.4,0.70176796]
[1643813559379,0.78001,2704.7,2704.3,0.1847]
[1643813559881,0.85391,2704.4,2704.3,0.1847]
[1643813560479,0.80391,2704.4,2704.0,0.69352408]
[1643813560688,0.30391,2704.4,2704.0,0.69352408]
[1643813560880,1.93075095,2704.5,2704.0,0.69352408]
[1643813560881,0.85648095,2704.5,2704.0,0.69352408]
[1643813561281,0.85391,2704.5,2704.0,0.69352408]
[1643813561486,0.18727095,2704.8,2704.0,0.69352408]
[1643813561682,0.00257095,2704.8,2704.2,0.20716779]
[1643813561882,0.00257095,2705.0,2704.6,0.88533249]
[1643813562583,0.1847,2705.1,2704.6,0.88533249]
[1643813562785,0.36973,2705.3,2704.6,0.88533249]
[1643813563238,0.1847,2705.3,2704.6,0.88533249]
[1643813564032,0.99249627,2705.3,2704.6,0.88533249]
[1643813564433,0.1847,2705.3,2704.6,0.88533249]
[1643813564733,0.1847,2705.3,2703.9,3.03263]
[1643813564734,0.01296633,2704.9,2703.9,3.03263]
[1643813564933,0.01296633,2704.9,2703.9,1.84793]
[1643813565132,0.01296633,2704.9,2704.4,0.23299714]
[1643813565332,0.01296633,2704.9,2703.9,1.84793]
[1643813565333,0.19766633,2704.9,2703.9,1.84793]
[1643813565532,0.01553728,2704.9,2703.9,1.84793]
[1643813565835,2.62526772,2704.9,2703.9,1.84793]
[1643813566035,0.18503,2704.8,2703.5,0.1847]
[1643813566235,0.24474138,2704.4,2703.5,0.1935733]
[1643813566536,3.48699496,2704.3,2703.1,0.1849]
[1643813566792,0.75614412,2704.0,2703.1,0.70250456]
[1643813566988,0.1849,2703.9,2703.1,0.70250456]
[1643813567390,0.18503,2704.2,2703.1,4.89471877]
[1643813567391,0.1849,2704.2,2703.1,4.89471877]
[1643813567588,0.36993,2704.6,2703.3,0.92427]
[1643813568087,0.36993,2704.6,2704.1,0.81951303]
[1643813568288,0.61192898,2704.6,2703.3,1.22427]
[1643813568495,0.61192898,2704.6,2703.3,0.3]
[1643813568788,0.01204527,2704.4,2703.2,2.14844]
[1643813568989,0.1849,2704.3,2703.2,2.14844]
[1643813569188,1.10923,2704.3,2703.2,2.14844]
[1643813569388,1.10923,2704.3,2703.8,0.83394254]
[1643813569588,1.10923,2704.3,2703.2,2.14844]
[1643813570389,0.1849,2704.5,2703.5,0.9242]
[1643813570631,0.36993,2704.6,2704.1,0.86800411]
[1643813570832,0.36993,2704.6,2703.5,0.9242]
[1643813571032,0.36993,2704.6,2703.5,1.2242]
[1643813571429,0.20478343,2704.4,2703.5,0.53012896]
[1643813571629,0.20478343,2704.4,2703.5,0.23012896]
[1643813571831,0.20478343,2704.4,2703.3,0.4847]
[1643813571832,0.01297421,2704.2,2703.7,0.8588599]
[1643813572131,0.01297421,2704.2,2703.3,0.3]
[1643813572330,2.55422498,2704.2,2703.0,0.1849]
[1643813572633,0.1849,2704.1,2702.4,0.1849]
[1643813572832,0.434,2704.0,2702.4,0.1849]
[1643813573032,0.434,2704.0,2702.0,0.1849]